Workbook

Sheet guide
B2: Package: R R setup (on windows) 1. install R; 2. Include the path to folders with jri.dll and rJava.dll files and R .../R/R-3.1.3/bin/x64/ folder (for 32-bit system link to /i386/ folders) in "Computer > System properties > Advanced system settings > Environment variables > System variables > Path" variable; The files jri.dll and rJava.dll are included with the xlloopkr distribution. Available functions: ROutput out = eval(String code, Object exportResults) where code is the code executed by R and exportResults is the result of data export that must be performed prior to R execution ; String[][] (String[]) get(ROutput out, String key) where key represents the key for a specific retrieved field. The following keys can be used: 1. table-standard: standard table output of the regression output; 2. stats: regression statistics; 3. residuals: regression residuals; 4. output-keys: returns the full list keys associates with regression output objects

Sheet R
B2: TAB: R-OLS REGRESSION OUTPUT
B4: Data file path | C4: C:/Projects/java/data/jmc/jmath/stats/R/data/EWR-Aug.csv
B5: Data: export | C5: =_xll.AC.data.io.export(data!C8:L535, C4) -> java.lang.NullPointerException
B6: R: eval | C6: =_xll.AC.stats.R.eval(code!B5, C5) -> jmathkr.lib.stats.R.output.ROutput@Tue, 23 Jan 2018 21:42:38:906..7490352249850795300
B8: Output
B10: Standard outptut | G10: 1.95 | J10: Regression statistics | M10: R regression output keys
B12: Variable | C12: coefficient | D12: stdev | E12: t-stats | F12: P-value | G12: C-Left | H12: C-Right | J12: =_xll.AC.stats.R.get(C6, "stats") -> java.lang.IndexOutOfBoundsException: Index: 0, Size: 0 | K12: java.lang.IndexOutOfBoundsException: Index: 0, Size: 0 | M12: =_xll.AC.stats.R.get(C6, "output-keys") -> mydata
B13: constant | C13: =_xll.AC.stats.R.get(C6, "table-standard") -> java.lang.ArrayIndexOutOfBoundsException: -1 | D13: java.lang.ArrayIndexOutOfBoundsException: -1 | E13: java.lang.ArrayIndexOutOfBoundsException: -1 | F13: java.lang.ArrayIndexOutOfBoundsException: -1 | G13: =C13-D13*$G$10 ->  | H13: =C13+$G$10*D13 ->  | J13: java.lang.IndexOutOfBoundsException: Index: 0, Size: 0 | K13: java.lang.IndexOutOfBoundsException: Index: 0, Size: 0 | M13: reg
B14: =data!G8 -> Linear | C14: java.lang.ArrayIndexOutOfBoundsException: -1 | D14: java.lang.ArrayIndexOutOfBoundsException: -1 | E14: java.lang.ArrayIndexOutOfBoundsException: -1 | F14: java.lang.ArrayIndexOutOfBoundsException: -1 | G14: =C14-D14*$G$10 ->  | H14: =C14+$G$10*D14 ->  | J14: java.lang.IndexOutOfBoundsException: Index: 0, Size: 0 | K14: java.lang.IndexOutOfBoundsException: Index: 0, Size: 0 | M14: out
B15: =data!H8 -> Quadratic | C15: java.lang.ArrayIndexOutOfBoundsException: -1 | D15: java.lang.ArrayIndexOutOfBoundsException: -1 | E15: java.lang.ArrayIndexOutOfBoundsException: -1 | F15: java.lang.ArrayIndexOutOfBoundsException: -1 | J15: java.lang.IndexOutOfBoundsException: Index: 0, Size: 0 | K15: java.lang.IndexOutOfBoundsException: Index: 0, Size: 0
B16: =data!I8 -> EWR.lag1 | C16: java.lang.ArrayIndexOutOfBoundsException: -1 | D16: java.lang.ArrayIndexOutOfBoundsException: -1 | E16: java.lang.ArrayIndexOutOfBoundsException: -1 | F16: java.lang.ArrayIndexOutOfBoundsException: -1 | J16: java.lang.IndexOutOfBoundsException: Index: 0, Size: 0 | K16: java.lang.IndexOutOfBoundsException: Index: 0, Size: 0
B17: =data!J8 -> EWR.lag2 | C17: java.lang.ArrayIndexOutOfBoundsException: -1 | D17: java.lang.ArrayIndexOutOfBoundsException: -1 | E17: java.lang.ArrayIndexOutOfBoundsException: -1 | F17: java.lang.ArrayIndexOutOfBoundsException: -1 | J17: java.lang.IndexOutOfBoundsException: Index: 0, Size: 0 | K17: java.lang.IndexOutOfBoundsException: Index: 0, Size: 0
B18: =data!K8 -> Aug.1st | C18: java.lang.ArrayIndexOutOfBoundsException: -1 | D18: java.lang.ArrayIndexOutOfBoundsException: -1 | E18: java.lang.ArrayIndexOutOfBoundsException: -1 | F18: java.lang.ArrayIndexOutOfBoundsException: -1
B19: =data!L8 -> Aug.2nd | C19: java.lang.ArrayIndexOutOfBoundsException: -1 | D19: java.lang.ArrayIndexOutOfBoundsException: -1 | E19: java.lang.ArrayIndexOutOfBoundsException: -1 | F19: java.lang.ArrayIndexOutOfBoundsException: -1
B22: Projections and residuals
B24: # | C24: y | D24: yhat | E24: =_xll.AC.stats.R.get(C6, "residuals") -> java.lang.IndexOutOfBoundsException: Index: 0, Size: 0
B25: =data!B5 -> 0 | C25: =data!E9 -> 83 | D25: =C25-E25 ->  | E25: java.lang.IndexOutOfBoundsException: Index: 0, Size: 0
B26: =data!B6 -> 0 | C26: =data!E10 -> 76.5 | D26: =C26-E26 ->  | E26: java.lang.IndexOutOfBoundsException: Index: 0, Size: 0
B27: =data!B7 -> 0 | C27: =data!E11 -> 82.45 | E27: java.lang.IndexOutOfBoundsException: Index: 0, Size: 0
B28: =data!B8 -> # | C28: =data!E12 -> 79.5 | E28: java.lang.IndexOutOfBoundsException: Index: 0, Size: 0
B29: =data!B9 -> 1 | C29: =data!E13 -> 79.55 | E29: java.lang.IndexOutOfBoundsException: Index: 0, Size: 0
B30: =data!B10 -> 2 | C30: =data!E14 -> 85 | E30: java.lang.IndexOutOfBoundsException: Index: 0, Size: 0
B31: =data!B11 -> 3 | C31: =data!E15 -> 77.45 | E31: java.lang.IndexOutOfBoundsException: Index: 0, Size: 0
B32: =data!B12 -> 4 | C32: =data!E16 -> 76.46 | E32: java.lang.IndexOutOfBoundsException: Index: 0, Size: 0
B33: =data!B13 -> 5 | C33: =data!E17 -> 71.51 | E33: java.lang.IndexOutOfBoundsException: Index: 0, Size: 0
B34: =data!B14 -> 6 | C34: =data!E18 -> 73.94 | E34: java.lang.IndexOutOfBoundsException: Index: 0, Size: 0
B35: =data!B15 -> 7 | C35: =data!E19 -> 80.51 | E35: java.lang.IndexOutOfBoundsException: Index: 0, Size: 0
B36: =data!B16 -> 8 | C36: =data!E20 -> 79.52 | E36: java.lang.IndexOutOfBoundsException: Index: 0, Size: 0
B37: =data!B17 -> 9 | C37: =data!E21 -> 82 | E37: java.lang.IndexOutOfBoundsException: Index: 0, Size: 0
B38: =data!B18 -> 10 | C38: =data!E22 -> 80.05 | E38: java.lang.IndexOutOfBoundsException: Index: 0, Size: 0
B39: =data!B19 -> 11 | C39: =data!E23 -> 82 | E39: java.lang.IndexOutOfBoundsException: Index: 0, Size: 0
B40: =data!B20 -> 12 | C40: =data!E24 -> 85.01 | E40: java.lang.IndexOutOfBoundsException: Index: 0, Size: 0
B41: =data!B21 -> 13 | C41: =data!E25 -> 85.45 | E41: java.lang.IndexOutOfBoundsException: Index: 0, Size: 0
B42: =data!B22 -> 14 | C42: =data!E26 -> 88.5 | E42: java.lang.IndexOutOfBoundsException: Index: 0, Size: 0
B43: =data!B23 -> 15 | C43: =data!E27 -> 88.5 | E43: java.lang.IndexOutOfBoundsException: Index: 0, Size: 0
B44: =data!B24 -> 16 | C44: =data!E28 -> 85.5 | E44: java.lang.IndexOutOfBoundsException: Index: 0, Size: 0
B45: =data!B25 -> 17 | C45: =data!E29 -> 85.5 | E45: java.lang.IndexOutOfBoundsException: Index: 0, Size: 0
B46: =data!B26 -> 18 | C46: =data!E30 -> 82.49 | E46: java.lang.IndexOutOfBoundsException: Index: 0, Size: 0
B47: =data!B27 -> 19 | C47: =data!E31 -> 77.55 | E47: java.lang.IndexOutOfBoundsException: Index: 0, Size: 0
B48: =data!B28 -> 20 | C48: =data!E32 -> 78.08 | E48: java.lang.IndexOutOfBoundsException: Index: 0, Size: 0
B49: =data!B29 -> 21 | C49: =data!E33 -> 80.08 | E49: java.lang.IndexOutOfBoundsException: Index: 0, Size: 0
B50: =data!B30 -> 22 | C50: =data!E34 -> 81.5 | E50: java.lang.IndexOutOfBoundsException: Index: 0, Size: 0
B51: =data!B31 -> 23 | C51: =data!E35 -> 75.47 | E51: java.lang.IndexOutOfBoundsException: Index: 0, Size: 0
B52: =data!B32 -> 24 | C52: =data!E36 -> 72.5 | E52: java.lang.IndexOutOfBoundsException: Index: 0, Size: 0
B53: =data!B33 -> 25 | C53: =data!E37 -> 72.5 | E53: java.lang.IndexOutOfBoundsException: Index: 0, Size: 0
B54: =data!B34 -> 26 | C54: =data!E38 -> 73.49 | E54: java.lang.IndexOutOfBoundsException: Index: 0, Size: 0
B55: =data!B35 -> 27 | C55: =data!E39 -> 75 | E55: java.lang.IndexOutOfBoundsException: Index: 0, Size: 0
B56: =data!B36 -> 28 | C56: =data!E40 -> 84.5 | E56: java.lang.IndexOutOfBoundsException: Index: 0, Size: 0
B57: =data!B37 -> 29 | C57: =data!E41 -> 79 | E57: java.lang.IndexOutOfBoundsException: Index: 0, Size: 0
B58: =data!B38 -> 30 | C58: =data!E42 -> 75.5 | E58: java.lang.IndexOutOfBoundsException: Index: 0, Size: 0
B59: =data!B39 -> 31 | C59: =data!E43 -> 73 | E59: java.lang.IndexOutOfBoundsException: Index: 0, Size: 0
B60: =data!B40 -> 32 | C60: =data!E44 -> 74 | E60: java.lang.IndexOutOfBoundsException: Index: 0, Size: 0
B61: =data!B41 -> 33 | C61: =data!E45 -> 75.5 | E61: java.lang.IndexOutOfBoundsException: Index: 0, Size: 0
B62: =data!B42 -> 34 | C62: =data!E46 -> 83 | E62: java.lang.IndexOutOfBoundsException: Index: 0, Size: 0
B63: =data!B43 -> 35 | C63: =data!E47 -> 78.5 | E63: java.lang.IndexOutOfBoundsException: Index: 0, Size: 0
B64: =data!B44 -> 36 | C64: =data!E48 -> 75 | E64: java.lang.IndexOutOfBoundsException: Index: 0, Size: 0
B65: =data!B45 -> 37 | C65: =data!E49 -> 77.5 | E65: java.lang.IndexOutOfBoundsException: Index: 0, Size: 0
B66: =data!B46 -> 38 | C66: =data!E50 -> 80.5 | E66: java.lang.IndexOutOfBoundsException: Index: 0, Size: 0
B67: =data!B47 -> 39 | C67: =data!E51 -> 81.5 | E67: java.lang.IndexOutOfBoundsException: Index: 0, Size: 0
B68: =data!B48 -> 40 | C68: =data!E52 -> 81 | E68: java.lang.IndexOutOfBoundsException: Index: 0, Size: 0
B69: =data!B49 -> 41 | C69: =data!E53 -> 84 | E69: java.lang.IndexOutOfBoundsException: Index: 0, Size: 0
B70: =data!B50 -> 42 | C70: =data!E54 -> 85 | E70: java.lang.IndexOutOfBoundsException: Index: 0, Size: 0
B71: =data!B51 -> 43 | C71: =data!E55 -> 84 | E71: java.lang.IndexOutOfBoundsException: Index: 0, Size: 0
B72: =data!B52 -> 44 | C72: =data!E56 -> 81 | E72: java.lang.IndexOutOfBoundsException: Index: 0, Size: 0
B73: =data!B53 -> 45 | C73: =data!E57 -> 76.5 | E73: java.lang.IndexOutOfBoundsException: Index: 0, Size: 0
B74: =data!B54 -> 46 | C74: =data!E58 -> 76.5 | E74: java.lang.IndexOutOfBoundsException: Index: 0, Size: 0
B75: =data!B55 -> 47 | C75: =data!E59 -> 78 | E75: java.lang.IndexOutOfBoundsException: Index: 0, Size: 0
B76: =data!B56 -> 48 | C76: =data!E60 -> 76.5 | E76: java.lang.IndexOutOfBoundsException: Index: 0, Size: 0
B77: =data!B57 -> 49 | C77: =data!E61 -> 74.5 | E77: java.lang.IndexOutOfBoundsException: Index: 0, Size: 0
B78: =data!B58 -> 50 | C78: =data!E62 -> 77 | E78: java.lang.IndexOutOfBoundsException: Index: 0, Size: 0
B79: =data!B59 -> 51 | C79: =data!E63 -> 74 | E79: java.lang.IndexOutOfBoundsException: Index: 0, Size: 0
B80: =data!B60 -> 52 | C80: =data!E64 -> 75.5 | E80: java.lang.IndexOutOfBoundsException: Index: 0, Size: 0
B81: =data!B61 -> 53 | C81: =data!E65 -> 75.5 | E81: java.lang.IndexOutOfBoundsException: Index: 0, Size: 0
B82: =data!B62 -> 54 | C82: =data!E66 -> 79.5 | E82: java.lang.IndexOutOfBoundsException: Index: 0, Size: 0
B83: =data!B63 -> 55 | C83: =data!E67 -> 81 | E83: java.lang.IndexOutOfBoundsException: Index: 0, Size: 0
B84: =data!B64 -> 56 | C84: =data!E68 -> 81.5 | E84: java.lang.IndexOutOfBoundsException: Index: 0, Size: 0
B85: =data!B65 -> 57 | C85: =data!E69 -> 79 | E85: java.lang.IndexOutOfBoundsException: Index: 0, Size: 0
B86: =data!B66 -> 58 | C86: =data!E70 -> 82 | E86: java.lang.IndexOutOfBoundsException: Index: 0, Size: 0
B87: =data!B67 -> 59 | C87: =data!E71 -> 82 | E87: java.lang.IndexOutOfBoundsException: Index: 0, Size: 0
B88: =data!B68 -> 60 | C88: =data!E72 -> 70 | E88: java.lang.IndexOutOfBoundsException: Index: 0, Size: 0
B89: =data!B69 -> 61 | C89: =data!E73 -> 70 | E89: java.lang.IndexOutOfBoundsException: Index: 0, Size: 0
B90: =data!B70 -> 62 | C90: =data!E74 -> 74 | D90: =C90-E90 ->  | E90: java.lang.IndexOutOfBoundsException: Index: 0, Size: 0
B91: =data!B71 -> 63 | C91: =data!E75 -> 80 | E91: java.lang.IndexOutOfBoundsException: Index: 0, Size: 0
B92: =data!B72 -> 64 | C92: =data!E76 -> 77.5 | E92: java.lang.IndexOutOfBoundsException: Index: 0, Size: 0
B93: =data!B73 -> 65 | C93: =data!E77 -> 74 | E93: java.lang.IndexOutOfBoundsException: Index: 0, Size: 0
B94: =data!B74 -> 66 | C94: =data!E78 -> 72 | E94: java.lang.IndexOutOfBoundsException: Index: 0, Size: 0
B95: =data!B75 -> 67 | C95: =data!E79 -> 71 | E95: java.lang.IndexOutOfBoundsException: Index: 0, Size: 0
B96: =data!B76 -> 68 | C96: =data!E80 -> 72 | E96: java.lang.IndexOutOfBoundsException: Index: 0, Size: 0
B97: =data!B77 -> 69 | C97: =data!E81 -> 73 | E97: java.lang.IndexOutOfBoundsException: Index: 0, Size: 0
B98: =data!B78 -> 70 | C98: =data!E82 -> 76 | E98: java.lang.IndexOutOfBoundsException: Index: 0, Size: 0
B99: =data!B79 -> 71 | C99: =data!E83 -> 72.5 | E99: java.lang.IndexOutOfBoundsException: Index: 0, Size: 0
B100: =data!B80 -> 72 | C100: =data!E84 -> 73.5 | E100: java.lang.IndexOutOfBoundsException: Index: 0, Size: 0
B101: =data!B81 -> 73 | C101: =data!E85 -> 75.5 | E101: java.lang.IndexOutOfBoundsException: Index: 0, Size: 0
B102: =data!B82 -> 74 | C102: =data!E86 -> 69.5 | E102: java.lang.IndexOutOfBoundsException: Index: 0, Size: 0
B103: =data!B83 -> 75 | C103: =data!E87 -> 67 | E103: java.lang.IndexOutOfBoundsException: Index: 0, Size: 0
B104: =data!B84 -> 76 | C104: =data!E88 -> 71.5 | E104: java.lang.IndexOutOfBoundsException: Index: 0, Size: 0
B105: =data!B85 -> 77 | C105: =data!E89 -> 77.5 | E105: java.lang.IndexOutOfBoundsException: Index: 0, Size: 0
B106: =data!B86 -> 78 | C106: =data!E90 -> 76 | E106: java.lang.IndexOutOfBoundsException: Index: 0, Size: 0
B107: =data!B87 -> 79 | C107: =data!E91 -> 76.5 | E107: java.lang.IndexOutOfBoundsException: Index: 0, Size: 0
B108: =data!B88 -> 80 | C108: =data!E92 -> 76 | E108: java.lang.IndexOutOfBoundsException: Index: 0, Size: 0
B109: =data!B89 -> 81 | C109: =data!E93 -> 76.5 | E109: java.lang.IndexOutOfBoundsException: Index: 0, Size: 0
B110: =data!B90 -> 82 | C110: =data!E94 -> 73 | E110: java.lang.IndexOutOfBoundsException: Index: 0, Size: 0
B111: =data!B91 -> 83 | C111: =data!E95 -> 76 | E111: java.lang.IndexOutOfBoundsException: Index: 0, Size: 0
B112: =data!B92 -> 84 | C112: =data!E96 -> 78.5 | E112: java.lang.IndexOutOfBoundsException: Index: 0, Size: 0
B113: =data!B93 -> 85 | C113: =data!E97 -> 78.5 | E113: java.lang.IndexOutOfBoundsException: Index: 0, Size: 0
B114: =data!B94 -> 86 | C114: =data!E98 -> 77.5 | E114: java.lang.IndexOutOfBoundsException: Index: 0, Size: 0
B115: =data!B95 -> 87 | C115: =data!E99 -> 72.5 | E115: java.lang.IndexOutOfBoundsException: Index: 0, Size: 0
B116: =data!B96 -> 88 | C116: =data!E100 -> 71 | E116: java.lang.IndexOutOfBoundsException: Index: 0, Size: 0
B117: =data!B97 -> 89 | C117: =data!E101 -> 77.5 | E117: java.lang.IndexOutOfBoundsException: Index: 0, Size: 0
B118: =data!B98 -> 90 | C118: =data!E102 -> 80 | E118: java.lang.IndexOutOfBoundsException: Index: 0, Size: 0
B119: =data!B99 -> 91 | C119: =data!E103 -> 78 | E119: java.lang.IndexOutOfBoundsException: Index: 0, Size: 0
B120: =data!B100 -> 92 | C120: =data!E104 -> 76 | E120: java.lang.IndexOutOfBoundsException: Index: 0, Size: 0
B121: =data!B101 -> 93 | C121: =data!E105 -> 78.5 | E121: java.lang.IndexOutOfBoundsException: Index: 0, Size: 0
B122: =data!B102 -> 94 | C122: =data!E106 -> 81 | E122: java.lang.IndexOutOfBoundsException: Index: 0, Size: 0
B123: =data!B103 -> 95 | C123: =data!E107 -> 76.5 | E123: java.lang.IndexOutOfBoundsException: Index: 0, Size: 0
B124: =data!B104 -> 96 | C124: =data!E108 -> 72.05 | E124: java.lang.IndexOutOfBoundsException: Index: 0, Size: 0
B125: =data!B105 -> 97 | C125: =data!E109 -> 71 | E125: java.lang.IndexOutOfBoundsException: Index: 0, Size: 0
B126: =data!B106 -> 98 | C126: =data!E110 -> 76 | E126: java.lang.IndexOutOfBoundsException: Index: 0, Size: 0
B127: =data!B107 -> 99 | C127: =data!E111 -> 75 | E127: java.lang.IndexOutOfBoundsException: Index: 0, Size: 0
B128: =data!B108 -> 100 | C128: =data!E112 -> 79.5 | E128: java.lang.IndexOutOfBoundsException: Index: 0, Size: 0
B129: =data!B109 -> 101 | C129: =data!E113 -> 77 | E129: java.lang.IndexOutOfBoundsException: Index: 0, Size: 0
B130: =data!B110 -> 102 | C130: =data!E114 -> 71.5 | E130: java.lang.IndexOutOfBoundsException: Index: 0, Size: 0
B131: =data!B111 -> 103 | C131: =data!E115 -> 71.5 | E131: java.lang.IndexOutOfBoundsException: Index: 0, Size: 0
B132: =data!B112 -> 104 | C132: =data!E116 -> 72.5 | E132: java.lang.IndexOutOfBoundsException: Index: 0, Size: 0
B133: =data!B113 -> 105 | C133: =data!E117 -> 69.5 | E133: java.lang.IndexOutOfBoundsException: Index: 0, Size: 0
B134: =data!B114 -> 106 | C134: =data!E118 -> 69 | E134: java.lang.IndexOutOfBoundsException: Index: 0, Size: 0
B135: =data!B115 -> 107 | C135: =data!E119 -> 68.5 | E135: java.lang.IndexOutOfBoundsException: Index: 0, Size: 0
B136: =data!B116 -> 108 | C136: =data!E120 -> 74.5 | E136: java.lang.IndexOutOfBoundsException: Index: 0, Size: 0
B137: =data!B117 -> 109 | C137: =data!E121 -> 76.5 | E137: java.lang.IndexOutOfBoundsException: Index: 0, Size: 0
B138: =data!B118 -> 110 | C138: =data!E122 -> 73.49 | E138: java.lang.IndexOutOfBoundsException: Index: 0, Size: 0
B139: =data!B119 -> 111 | C139: =data!E123 -> 76.46 | E139: java.lang.IndexOutOfBoundsException: Index: 0, Size: 0
B140: =data!B120 -> 112 | C140: =data!E124 -> 80.95 | E140: java.lang.IndexOutOfBoundsException: Index: 0, Size: 0
B141: =data!B121 -> 113 | C141: =data!E125 -> 77 | E141: java.lang.IndexOutOfBoundsException: Index: 0, Size: 0
B142: =data!B122 -> 114 | C142: =data!E126 -> 74.5 | E142: java.lang.IndexOutOfBoundsException: Index: 0, Size: 0
B143: =data!B123 -> 115 | C143: =data!E127 -> 71 | E143: java.lang.IndexOutOfBoundsException: Index: 0, Size: 0
B144: =data!B124 -> 116 | C144: =data!E128 -> 71 | E144: java.lang.IndexOutOfBoundsException: Index: 0, Size: 0
B145: =data!B125 -> 117 | C145: =data!E129 -> 73 | E145: java.lang.IndexOutOfBoundsException: Index: 0, Size: 0
B146: =data!B126 -> 118 | C146: =data!E130 -> 74.6 | E146: java.lang.IndexOutOfBoundsException: Index: 0, Size: 0
B147: =data!B127 -> 119 | C147: =data!E131 -> 77 | E147: java.lang.IndexOutOfBoundsException: Index: 0, Size: 0
B148: =data!B128 -> 120 | C148: =data!E132 -> 71.5 | E148: java.lang.IndexOutOfBoundsException: Index: 0, Size: 0
B149: =data!B129 -> 121 | C149: =data!E133 -> 78.5 | E149: java.lang.IndexOutOfBoundsException: Index: 0, Size: 0
B150: =data!B130 -> 122 | C150: =data!E134 -> 73 | E150: java.lang.IndexOutOfBoundsException: Index: 0, Size: 0
B151: =data!B131 -> 123 | C151: =data!E135 -> 74 | E151: java.lang.IndexOutOfBoundsException: Index: 0, Size: 0
B152: =data!B132 -> 124 | C152: =data!E136 -> 81.5 | E152: java.lang.IndexOutOfBoundsException: Index: 0, Size: 0
B153: =data!B133 -> 125 | C153: =data!E137 -> 76.5 | E153: java.lang.IndexOutOfBoundsException: Index: 0, Size: 0
B154: =data!B134 -> 126 | C154: =data!E138 -> 75.5 | D154: =C154-E154 ->  | E154: java.lang.IndexOutOfBoundsException: Index: 0, Size: 0
B155: =data!B135 -> 127 | C155: =data!E139 -> 77.5 | E155: java.lang.IndexOutOfBoundsException: Index: 0, Size: 0
B156: =data!B136 -> 128 | C156: =data!E140 -> 78.5 | E156: java.lang.IndexOutOfBoundsException: Index: 0, Size: 0
B157: =data!B137 -> 129 | C157: =data!E141 -> 76 | E157: java.lang.IndexOutOfBoundsException: Index: 0, Size: 0
B158: =data!B138 -> 130 | C158: =data!E142 -> 76 | E158: java.lang.IndexOutOfBoundsException: Index: 0, Size: 0
B159: =data!B139 -> 131 | C159: =data!E143 -> 75 | E159: java.lang.IndexOutOfBoundsException: Index: 0, Size: 0
B160: =data!B140 -> 132 | C160: =data!E144 -> 72 | E160: java.lang.IndexOutOfBoundsException: Index: 0, Size: 0
B161: =data!B141 -> 133 | C161: =data!E145 -> 67.5 | E161: java.lang.IndexOutOfBoundsException: Index: 0, Size: 0
B162: =data!B142 -> 134 | C162: =data!E146 -> 73.5 | E162: java.lang.IndexOutOfBoundsException: Index: 0, Size: 0
B163: =data!B143 -> 135 | C163: =data!E147 -> 79 | E163: java.lang.IndexOutOfBoundsException: Index: 0, Size: 0
B164: =data!B144 -> 136 | C164: =data!E148 -> 78 | E164: java.lang.IndexOutOfBoundsException: Index: 0, Size: 0
B165: =data!B145 -> 137 | C165: =data!E149 -> 77.5 | E165: java.lang.IndexOutOfBoundsException: Index: 0, Size: 0
B166: =data!B146 -> 138 | C166: =data!E150 -> 74.5 | E166: java.lang.IndexOutOfBoundsException: Index: 0, Size: 0
B167: =data!B147 -> 139 | C167: =data!E151 -> 78 | E167: java.lang.IndexOutOfBoundsException: Index: 0, Size: 0
B168: =data!B148 -> 140 | C168: =data!E152 -> 80.5 | E168: java.lang.IndexOutOfBoundsException: Index: 0, Size: 0
B169: =data!B149 -> 141 | C169: =data!E153 -> 82 | E169: java.lang.IndexOutOfBoundsException: Index: 0, Size: 0
B170: =data!B150 -> 142 | C170: =data!E154 -> 77 | E170: java.lang.IndexOutOfBoundsException: Index: 0, Size: 0
B171: =data!B151 -> 143 | C171: =data!E155 -> 81.5 | E171: java.lang.IndexOutOfBoundsException: Index: 0, Size: 0
B172: =data!B152 -> 144 | C172: =data!E156 -> 80 | E172: java.lang.IndexOutOfBoundsException: Index: 0, Size: 0
B173: =data!B153 -> 145 | C173: =data!E157 -> 74.5 | E173: java.lang.IndexOutOfBoundsException: Index: 0, Size: 0
B174: =data!B154 -> 146 | C174: =data!E158 -> 81.5 | E174: java.lang.IndexOutOfBoundsException: Index: 0, Size: 0
B175: =data!B155 -> 147 | C175: =data!E159 -> 84.5 | E175: java.lang.IndexOutOfBoundsException: Index: 0, Size: 0
B176: =data!B156 -> 148 | C176: =data!E160 -> 83 | E176: java.lang.IndexOutOfBoundsException: Index: 0, Size: 0
B177: =data!B157 -> 149 | C177: =data!E161 -> 83.5 | E177: java.lang.IndexOutOfBoundsException: Index: 0, Size: 0
B178: =data!B158 -> 150 | C178: =data!E162 -> 80.5 | E178: java.lang.IndexOutOfBoundsException: Index: 0, Size: 0
B179: =data!B159 -> 151 | C179: =data!E163 -> 75.5 | E179: java.lang.IndexOutOfBoundsException: Index: 0, Size: 0
B180: =data!B160 -> 152 | C180: =data!E164 -> 74.5 | E180: java.lang.IndexOutOfBoundsException: Index: 0, Size: 0
B181: =data!B161 -> 153 | C181: =data!E165 -> 72.5 | E181: java.lang.IndexOutOfBoundsException: Index: 0, Size: 0
B182: =data!B162 -> 154 | C182: =data!E166 -> 68 | E182: java.lang.IndexOutOfBoundsException: Index: 0, Size: 0
B183: =data!B163 -> 155 | C183: =data!E167 -> 71 | E183: java.lang.IndexOutOfBoundsException: Index: 0, Size: 0
B184: =data!B164 -> 156 | C184: =data!E168 -> 77 | E184: java.lang.IndexOutOfBoundsException: Index: 0, Size: 0
B185: =data!B165 -> 157 | C185: =data!E169 -> 78.5 | E185: java.lang.IndexOutOfBoundsException: Index: 0, Size: 0
B186: =data!B166 -> 158 | C186: =data!E170 -> 76.5 | E186: java.lang.IndexOutOfBoundsException: Index: 0, Size: 0
B187: =data!B167 -> 159 | C187: =data!E171 -> 72.5 | E187: java.lang.IndexOutOfBoundsException: Index: 0, Size: 0
B188: =data!B168 -> 160 | C188: =data!E172 -> 72 | E188: java.lang.IndexOutOfBoundsException: Index: 0, Size: 0
B189: =data!B169 -> 161 | C189: =data!E173 -> 74.5 | E189: java.lang.IndexOutOfBoundsException: Index: 0, Size: 0
B190: =data!B170 -> 162 | C190: =data!E174 -> 79.5 | E190: java.lang.IndexOutOfBoundsException: Index: 0, Size: 0
B191: =data!B171 -> 163 | C191: =data!E175 -> 77 | E191: java.lang.IndexOutOfBoundsException: Index: 0, Size: 0
B192: =data!B172 -> 164 | C192: =data!E176 -> 76.5 | E192: java.lang.IndexOutOfBoundsException: Index: 0, Size: 0
B193: =data!B173 -> 165 | C193: =data!E177 -> 78 | E193: java.lang.IndexOutOfBoundsException: Index: 0, Size: 0
B194: =data!B174 -> 166 | C194: =data!E178 -> 77.5 | E194: java.lang.IndexOutOfBoundsException: Index: 0, Size: 0
B195: =data!B175 -> 167 | C195: =data!E179 -> 73.5 | E195: java.lang.IndexOutOfBoundsException: Index: 0, Size: 0
B196: =data!B176 -> 168 | C196: =data!E180 -> 75.5 | E196: java.lang.IndexOutOfBoundsException: Index: 0, Size: 0
B197: =data!B177 -> 169 | C197: =data!E181 -> 71.5 | E197: java.lang.IndexOutOfBoundsException: Index: 0, Size: 0
B198: =data!B178 -> 170 | C198: =data!E182 -> 78 | E198: java.lang.IndexOutOfBoundsException: Index: 0, Size: 0
B199: =data!B179 -> 171 | C199: =data!E183 -> 75 | E199: java.lang.IndexOutOfBoundsException: Index: 0, Size: 0
B200: =data!B180 -> 172 | C200: =data!E184 -> 77.5 | E200: java.lang.IndexOutOfBoundsException: Index: 0, Size: 0
B201: =data!B181 -> 173 | C201: =data!E185 -> 80 | E201: java.lang.IndexOutOfBoundsException: Index: 0, Size: 0
B202: =data!B182 -> 174 | C202: =data!E186 -> 78 | E202: java.lang.IndexOutOfBoundsException: Index: 0, Size: 0
B203: =data!B183 -> 175 | C203: =data!E187 -> 85 | E203: java.lang.IndexOutOfBoundsException: Index: 0, Size: 0
B204: =data!B184 -> 176 | C204: =data!E188 -> 85 | E204: java.lang.IndexOutOfBoundsException: Index: 0, Size: 0
B205: =data!B185 -> 177 | C205: =data!E189 -> 78.5 | E205: java.lang.IndexOutOfBoundsException: Index: 0, Size: 0
B206: =data!B186 -> 178 | C206: =data!E190 -> 77.5 | E206: java.lang.IndexOutOfBoundsException: Index: 0, Size: 0
B207: =data!B187 -> 179 | C207: =data!E191 -> 76.5 | E207: java.lang.IndexOutOfBoundsException: Index: 0, Size: 0
B208: =data!B188 -> 180 | C208: =data!E192 -> 78 | E208: java.lang.IndexOutOfBoundsException: Index: 0, Size: 0
... 103 more rows

Sheet data
B2: TAB: REGRESSION DATA | G2: Explanatory variables
D4: Average | E4: =AVERAGE(E9:E535) -> 76.85694497
D5: StDev | E5: =STDEV(E9:E535) -> 5.122489477
C7: August
B8: # | C8: Year | D8: Date | E8: EWR.Aug | G8: Linear | H8: Quadratic | I8: EWR.lag1 | J8: EWR.lag2 | K8: Aug.1st | L8: Aug.2nd
B9: 1 | C9: 2016 | D9: =DATE(C9, 8, 31) -> 2016-08-31 | E9: 83 | G9: =B9/31 -> 0.03225806452 | H9: =G9*G9 -> 0.001040582726 | I9: =E10 -> 76.5 | J9: =E11 -> 82.45 | K9: 0 | L9: 0
B10: =B9+1 -> 2 | C10: =C9 -> 2016 | D10: =D9-1 -> 2016-08-30 | E10: 76.5 | G10: 0.06451612903 | H10: =G10*G10 -> 0.004162330905 | I10: 82.45 | J10: 79.5 | K10: 0 | L10: 0
B11: =B10+1 -> 3 | C11: 2016 | D11: =D10-1 -> 2016-08-29 | E11: 82.45 | G11: 0.09677419355 | H11: 0.009365244537 | I11: 79.5 | J11: 79.55 | K11: 0 | L11: 0
B12: 4 | C12: 2016 | D12: 2016-08-28 | E12: 79.5 | G12: 0.1290322581 | H12: 0.01664932362 | I12: 79.55 | J12: 85 | K12: 0 | L12: 0
B13: 5 | C13: 2016 | D13: 2016-08-27 | E13: 79.55 | G13: 0.1612903226 | H13: 0.02601456816 | I13: 85 | J13: 77.45 | K13: 0 | L13: 0
B14: 6 | C14: 2016 | D14: 2016-08-26 | E14: 85 | G14: 0.1935483871 | H14: 0.03746097815 | I14: 77.45 | J14: 76.46 | K14: 0 | L14: 0
B15: 7 | C15: 2016 | D15: 2016-08-25 | E15: 77.45 | G15: 0.2258064516 | H15: 0.05098855359 | I15: 76.46 | J15: 71.51 | K15: 0 | L15: 0
B16: 8 | C16: 2016 | D16: 2016-08-24 | E16: 76.46 | G16: 0.2580645161 | H16: 0.06659729448 | I16: 71.51 | J16: 73.94 | K16: 0 | L16: 0
B17: 9 | C17: 2016 | D17: 2016-08-23 | E17: 71.51 | G17: 0.2903225806 | H17: 0.08428720083 | I17: 73.94 | J17: 80.51 | K17: 0 | L17: 0
B18: 10 | C18: 2016 | D18: 2016-08-22 | E18: 73.94 | G18: 0.3225806452 | H18: 0.1040582726 | I18: 80.51 | J18: 79.52 | K18: 0 | L18: 0
B19: 11 | C19: 2016 | D19: 2016-08-21 | E19: 80.51 | G19: 0.3548387097 | H19: 0.1259105099 | I19: 79.52 | J19: 82 | K19: 0 | L19: 0
B20: 12 | C20: 2016 | D20: 2016-08-20 | E20: 79.52 | G20: 0.3870967742 | H20: 0.1498439126 | I20: 82 | J20: 80.05 | K20: 0 | L20: 0
B21: 13 | C21: 2016 | D21: 2016-08-19 | E21: 82 | G21: 0.4193548387 | H21: 0.1758584807 | I21: 80.05 | J21: 82 | K21: 0 | L21: 0
B22: 14 | C22: 2016 | D22: 2016-08-18 | E22: 80.05 | G22: 0.4516129032 | H22: 0.2039542144 | I22: 82 | J22: 85.01 | K22: 0 | L22: 0
B23: 15 | C23: 2016 | D23: 2016-08-17 | E23: 82 | G23: 0.4838709677 | H23: 0.2341311134 | I23: 85.01 | J23: 85.45 | K23: 0 | L23: 0
B24: 16 | C24: 2016 | D24: 2016-08-16 | E24: 85.01 | G24: 0.5161290323 | H24: 0.2663891779 | I24: 85.45 | J24: 88.5 | K24: 0 | L24: 0
B25: 17 | C25: 2016 | D25: 2016-08-15 | E25: 85.45 | G25: 0.5483870968 | H25: 0.3007284079 | I25: 88.5 | J25: 88.5 | K25: 0 | L25: 0
B26: 18 | C26: 2016 | D26: 2016-08-14 | E26: 88.5 | G26: 0.5806451613 | H26: 0.3371488033 | I26: 88.5 | J26: 85.5 | K26: 0 | L26: 0
B27: 19 | C27: 2016 | D27: 2016-08-13 | E27: 88.5 | G27: 0.6129032258 | H27: 0.3756503642 | I27: 85.5 | J27: 85.5 | K27: 0 | L27: 0
B28: 20 | C28: 2016 | D28: 2016-08-12 | E28: 85.5 | G28: 0.6451612903 | H28: 0.4162330905 | I28: 85.5 | J28: 82.49 | K28: 0 | L28: 0
B29: 21 | C29: 2016 | D29: 2016-08-11 | E29: 85.5 | G29: 0.6774193548 | H29: 0.4588969823 | I29: 82.49 | J29: 77.55 | K29: 0 | L29: 0
B30: 22 | C30: 2016 | D30: 2016-08-10 | E30: 82.49 | G30: 0.7096774194 | H30: 0.5036420395 | I30: 77.55 | J30: 78.08 | K30: 0 | L30: 0
B31: 23 | C31: 2016 | D31: 2016-08-09 | E31: 77.55 | G31: 0.7419354839 | H31: 0.5504682622 | I31: 78.08 | J31: 80.08 | K31: 0 | L31: 0
B32: 24 | C32: 2016 | D32: 2016-08-08 | E32: 78.08 | G32: 0.7741935484 | H32: 0.5993756504 | I32: 80.08 | J32: 81.5 | K32: 0 | L32: 0
B33: 25 | C33: 2016 | D33: 2016-08-07 | E33: 80.08 | G33: 0.8064516129 | H33: 0.650364204 | I33: 81.5 | J33: 75.47 | K33: 0 | L33: 0
B34: 26 | C34: 2016 | D34: 2016-08-06 | E34: 81.5 | G34: 0.8387096774 | H34: 0.703433923 | I34: 75.47 | J34: 72.5 | K34: 0 | L34: 0
B35: 27 | C35: 2016 | D35: 2016-08-05 | E35: 75.47 | G35: 0.8709677419 | H35: 0.7585848075 | I35: 72.5 | J35: 72.5 | K35: 0 | L35: 0
B36: 28 | C36: 2016 | D36: 2016-08-04 | E36: 72.5 | G36: 0.9032258065 | H36: 0.8158168574 | I36: 72.5 | J36: 73.49 | K36: 0 | L36: 0
B37: 29 | C37: 2016 | D37: 2016-08-03 | E37: 72.5 | G37: 0.935483871 | H37: 0.8751300728 | I37: 73.49 | J37: 75 | K37: 0 | L37: 0
B38: 30 | C38: 2016 | D38: 2016-08-02 | E38: 73.49 | G38: 0.9677419355 | H38: 0.9365244537 | I38: 75 | J38: 0 | K38: 0 | L38: 1
B39: 31 | C39: 2016 | D39: 2016-08-01 | E39: 75 | G39: 1 | H39: 1 | I39: 0 | J39: 0 | K39: 1 | L39: 0
B40: 32 | C40: =C9-1 -> 2015 | D40: =DATE(C40, 8, 31) -> 2015-08-31 | E40: 84.5 | G40: =G9 -> 0.03225806452 | H40: =H9 -> 0.001040582726 | I40: =E41 -> 79 | J40: =E42 -> 75.5 | K40: 0 | L40: 0
B41: 33 | C41: 2015 | D41: =D40-1 -> 2015-08-30 | E41: 79 | G41: =G10 -> 0.06451612903 | H41: 0.004162330905 | I41: 75.5 | J41: 73 | K41: 0 | L41: 0
B42: 34 | C42: 2015 | D42: 2015-08-29 | E42: 75.5 | G42: 0.09677419355 | H42: 0.009365244537 | I42: 73 | J42: 74 | K42: 0 | L42: 0
B43: 35 | C43: 2015 | D43: 2015-08-28 | E43: 73 | G43: 0.1290322581 | H43: 0.01664932362 | I43: 74 | J43: 75.5 | K43: 0 | L43: 0
B44: 36 | C44: 2015 | D44: 2015-08-27 | E44: 74 | G44: 0.1612903226 | H44: 0.02601456816 | I44: 75.5 | J44: 83 | K44: 0 | L44: 0
B45: 37 | C45: 2015 | D45: 2015-08-26 | E45: 75.5 | G45: 0.1935483871 | H45: 0.03746097815 | I45: 83 | J45: 78.5 | K45: 0 | L45: 0
B46: 38 | C46: 2015 | D46: 2015-08-25 | E46: 83 | G46: 0.2258064516 | H46: 0.05098855359 | I46: 78.5 | J46: 75 | K46: 0 | L46: 0
B47: 39 | C47: 2015 | D47: 2015-08-24 | E47: 78.5 | G47: 0.2580645161 | H47: 0.06659729448 | I47: 75 | J47: 77.5 | K47: 0 | L47: 0
B48: 40 | C48: 2015 | D48: 2015-08-23 | E48: 75 | G48: 0.2903225806 | H48: 0.08428720083 | I48: 77.5 | J48: 80.5 | K48: 0 | L48: 0
B49: 41 | C49: 2015 | D49: 2015-08-22 | E49: 77.5 | G49: 0.3225806452 | H49: 0.1040582726 | I49: 80.5 | J49: 81.5 | K49: 0 | L49: 0
B50: 42 | C50: 2015 | D50: 2015-08-21 | E50: 80.5 | G50: 0.3548387097 | H50: 0.1259105099 | I50: 81.5 | J50: 81 | K50: 0 | L50: 0
B51: 43 | C51: 2015 | D51: 2015-08-20 | E51: 81.5 | G51: 0.3870967742 | H51: 0.1498439126 | I51: 81 | J51: 84 | K51: 0 | L51: 0
B52: 44 | C52: 2015 | D52: 2015-08-19 | E52: 81 | G52: 0.4193548387 | H52: 0.1758584807 | I52: 84 | J52: 85 | K52: 0 | L52: 0
B53: 45 | C53: 2015 | D53: 2015-08-18 | E53: 84 | G53: 0.4516129032 | H53: 0.2039542144 | I53: 85 | J53: 84 | K53: 0 | L53: 0
B54: 46 | C54: 2015 | D54: 2015-08-17 | E54: 85 | G54: 0.4838709677 | H54: 0.2341311134 | I54: 84 | J54: 81 | K54: 0 | L54: 0
B55: 47 | C55: 2015 | D55: 2015-08-16 | E55: 84 | G55: 0.5161290323 | H55: 0.2663891779 | I55: 81 | J55: 76.5 | K55: 0 | L55: 0
B56: 48 | C56: 2015 | D56: 2015-08-15 | E56: 81 | G56: 0.5483870968 | H56: 0.3007284079 | I56: 76.5 | J56: 76.5 | K56: 0 | L56: 0
B57: 49 | C57: 2015 | D57: 2015-08-14 | E57: 76.5 | G57: =G26 -> 0.5806451613 | H57: 0.3371488033 | I57: 76.5 | J57: 78 | K57: 0 | L57: 0
B58: 50 | C58: 2015 | D58: 2015-08-13 | E58: 76.5 | G58: 0.6129032258 | H58: 0.3756503642 | I58: 78 | J58: 76.5 | K58: 0 | L58: 0
B59: 51 | C59: 2015 | D59: 2015-08-12 | E59: 78 | G59: 0.6451612903 | H59: 0.4162330905 | I59: 76.5 | J59: 74.5 | K59: 0 | L59: 0
B60: 52 | C60: 2015 | D60: 2015-08-11 | E60: 76.5 | G60: 0.6774193548 | H60: 0.4588969823 | I60: 74.5 | J60: 77 | K60: 0 | L60: 0
B61: 53 | C61: 2015 | D61: 2015-08-10 | E61: 74.5 | G61: 0.7096774194 | H61: 0.5036420395 | I61: 77 | J61: 74 | K61: 0 | L61: 0
B62: 54 | C62: 2015 | D62: 2015-08-09 | E62: 77 | G62: 0.7419354839 | H62: 0.5504682622 | I62: 74 | J62: 75.5 | K62: 0 | L62: 0
B63: 55 | C63: 2015 | D63: 2015-08-08 | E63: 74 | G63: 0.7741935484 | H63: 0.5993756504 | I63: 75.5 | J63: 75.5 | K63: 0 | L63: 0
B64: 56 | C64: 2015 | D64: 2015-08-07 | E64: 75.5 | G64: 0.8064516129 | H64: 0.650364204 | I64: 75.5 | J64: 79.5 | K64: 0 | L64: 0
B65: 57 | C65: 2015 | D65: 2015-08-06 | E65: 75.5 | G65: 0.8387096774 | H65: 0.703433923 | I65: 79.5 | J65: 81 | K65: 0 | L65: 0
B66: 58 | C66: 2015 | D66: 2015-08-05 | E66: 79.5 | G66: 0.8709677419 | H66: 0.7585848075 | I66: 81 | J66: 81.5 | K66: 0 | L66: 0
B67: 59 | C67: 2015 | D67: 2015-08-04 | E67: 81 | G67: 0.9032258065 | H67: 0.8158168574 | I67: 81.5 | J67: 79 | K67: 0 | L67: 0
B68: 60 | C68: 2015 | D68: 2015-08-03 | E68: 81.5 | G68: 0.935483871 | H68: 0.8751300728 | I68: 79 | J68: 82 | K68: 0 | L68: 0
B69: 61 | C69: 2015 | D69: 2015-08-02 | E69: 79 | G69: 0.9677419355 | H69: 0.9365244537 | I69: 82 | J69: 0 | K69: 0 | L69: 1
B70: 62 | C70: 2015 | D70: 2015-08-01 | E70: 82 | G70: 1 | H70: 1 | I70: 0 | J70: 0 | K70: 1 | L70: 0
B71: 63 | C71: 2014 | D71: =DATE(C71, 8, 31) -> 2014-08-31 | E71: 82 | G71: =G40 -> 0.03225806452 | H71: =H40 -> 0.001040582726 | I71: =E72 -> 70 | J71: =E73 -> 70 | K71: 0 | L71: 0
B72: 64 | C72: 2014 | D72: =D71-1 -> 2014-08-30 | E72: 70 | G72: =G41 -> 0.06451612903 | H72: 0.004162330905 | I72: 70 | J72: 74 | K72: 0 | L72: 0
B73: 65 | C73: 2014 | D73: 2014-08-29 | E73: 70 | G73: 0.09677419355 | H73: 0.009365244537 | I73: 74 | J73: 80 | K73: 0 | L73: 0
B74: 66 | C74: 2014 | D74: 2014-08-28 | E74: 74 | G74: 0.1290322581 | H74: 0.01664932362 | I74: 80 | J74: 77.5 | K74: 0 | L74: 0
B75: =B74+1 -> 67 | C75: 2014 | D75: 2014-08-27 | E75: 80 | G75: 0.1612903226 | H75: 0.02601456816 | I75: 77.5 | J75: 74 | K75: 0 | L75: 0
B76: 68 | C76: 2014 | D76: 2014-08-26 | E76: 77.5 | G76: 0.1935483871 | H76: 0.03746097815 | I76: 74 | J76: 72 | K76: 0 | L76: 0
B77: 69 | C77: 2014 | D77: 2014-08-25 | E77: 74 | G77: 0.2258064516 | H77: 0.05098855359 | I77: 72 | J77: 71 | K77: 0 | L77: 0
B78: 70 | C78: 2014 | D78: 2014-08-24 | E78: 72 | G78: 0.2580645161 | H78: 0.06659729448 | I78: 71 | J78: 72 | K78: 0 | L78: 0
B79: 71 | C79: 2014 | D79: 2014-08-23 | E79: 71 | G79: 0.2903225806 | H79: 0.08428720083 | I79: 72 | J79: 73 | K79: 0 | L79: 0
B80: 72 | C80: 2014 | D80: 2014-08-22 | E80: 72 | G80: 0.3225806452 | H80: 0.1040582726 | I80: 73 | J80: 76 | K80: 0 | L80: 0
B81: 73 | C81: 2014 | D81: 2014-08-21 | E81: 73 | G81: 0.3548387097 | H81: 0.1259105099 | I81: 76 | J81: 72.5 | K81: 0 | L81: 0
B82: 74 | C82: 2014 | D82: 2014-08-20 | E82: 76 | G82: 0.3870967742 | H82: 0.1498439126 | I82: 72.5 | J82: 73.5 | K82: 0 | L82: 0
B83: 75 | C83: 2014 | D83: 2014-08-19 | E83: 72.5 | G83: 0.4193548387 | H83: 0.1758584807 | I83: 73.5 | J83: 75.5 | K83: 0 | L83: 0
B84: 76 | C84: 2014 | D84: 2014-08-18 | E84: 73.5 | G84: 0.4516129032 | H84: 0.2039542144 | I84: 75.5 | J84: 69.5 | K84: 0 | L84: 0
B85: 77 | C85: 2014 | D85: 2014-08-17 | E85: 75.5 | G85: 0.4838709677 | H85: 0.2341311134 | I85: 69.5 | J85: 67 | K85: 0 | L85: 0
B86: 78 | C86: 2014 | D86: 2014-08-16 | E86: 69.5 | G86: 0.5161290323 | H86: 0.2663891779 | I86: 67 | J86: 71.5 | K86: 0 | L86: 0
B87: 79 | C87: 2014 | D87: 2014-08-15 | E87: 67 | G87: 0.5483870968 | H87: 0.3007284079 | I87: 71.5 | J87: 77.5 | K87: 0 | L87: 0
B88: 80 | C88: 2014 | D88: 2014-08-14 | E88: 71.5 | G88: =G57 -> 0.5806451613 | H88: 0.3371488033 | I88: 77.5 | J88: 76 | K88: 0 | L88: 0
B89: 81 | C89: 2014 | D89: 2014-08-13 | E89: 77.5 | G89: 0.6129032258 | H89: 0.3756503642 | I89: 76 | J89: 76.5 | K89: 0 | L89: 0
B90: 82 | C90: 2014 | D90: 2014-08-12 | E90: 76 | G90: 0.6451612903 | H90: 0.4162330905 | I90: 76.5 | J90: 76 | K90: 0 | L90: 0
B91: 83 | C91: 2014 | D91: 2014-08-11 | E91: 76.5 | G91: 0.6774193548 | H91: 0.4588969823 | I91: 76 | J91: 76.5 | K91: 0 | L91: 0
B92: 84 | C92: 2014 | D92: 2014-08-10 | E92: 76 | G92: 0.7096774194 | H92: 0.5036420395 | I92: 76.5 | J92: 73 | K92: 0 | L92: 0
B93: 85 | C93: 2014 | D93: 2014-08-09 | E93: 76.5 | G93: 0.7419354839 | H93: 0.5504682622 | I93: 73 | J93: 76 | K93: 0 | L93: 0
B94: 86 | C94: 2014 | D94: 2014-08-08 | E94: 73 | G94: 0.7741935484 | H94: 0.5993756504 | I94: 76 | J94: 78.5 | K94: 0 | L94: 0
B95: 87 | C95: 2014 | D95: 2014-08-07 | E95: 76 | G95: 0.8064516129 | H95: 0.650364204 | I95: 78.5 | J95: 78.5 | K95: 0 | L95: 0
B96: 88 | C96: 2014 | D96: 2014-08-06 | E96: 78.5 | G96: 0.8387096774 | H96: 0.703433923 | I96: 78.5 | J96: 77.5 | K96: 0 | L96: 0
B97: 89 | C97: 2014 | D97: 2014-08-05 | E97: 78.5 | G97: 0.8709677419 | H97: 0.7585848075 | I97: 77.5 | J97: 72.5 | K97: 0 | L97: 0
B98: 90 | C98: 2014 | D98: 2014-08-04 | E98: 77.5 | G98: 0.9032258065 | H98: 0.8158168574 | I98: 72.5 | J98: 71 | K98: 0 | L98: 0
B99: 91 | C99: 2014 | D99: 2014-08-03 | E99: 72.5 | G99: 0.935483871 | H99: 0.8751300728 | I99: 71 | J99: 77.5 | K99: 0 | L99: 0
B100: 92 | C100: 2014 | D100: 2014-08-02 | E100: 71 | G100: 0.9677419355 | H100: 0.9365244537 | I100: 77.5 | J100: 0 | K100: 0 | L100: 1
B101: 93 | C101: 2014 | D101: 2014-08-01 | E101: 77.5 | G101: 1 | H101: 1 | I101: 0 | J101: 0 | K101: 1 | L101: 0
B102: 94 | C102: 2013 | D102: =DATE(C102, 8, 31) -> 2013-08-31 | E102: 80 | G102: =G71 -> 0.03225806452 | H102: =H71 -> 0.001040582726 | I102: =E103 -> 78 | J102: =E104 -> 76 | K102: 0 | L102: 0
B103: 95 | C103: 2013 | D103: =D102-1 -> 2013-08-30 | E103: 78 | G103: =G72 -> 0.06451612903 | H103: 0.004162330905 | I103: 76 | J103: 78.5 | K103: 0 | L103: 0
B104: 96 | C104: =C73-1 -> 2013 | D104: 2013-08-29 | E104: 76 | G104: 0.09677419355 | H104: 0.009365244537 | I104: 78.5 | J104: 81 | K104: 0 | L104: 0
B105: 97 | C105: 2013 | D105: 2013-08-28 | E105: 78.5 | G105: 0.1290322581 | H105: 0.01664932362 | I105: 81 | J105: 76.5 | K105: 0 | L105: 0
B106: 98 | C106: 2013 | D106: 2013-08-27 | E106: 81 | G106: 0.1612903226 | H106: 0.02601456816 | I106: 76.5 | J106: 72.05 | K106: 0 | L106: 0
B107: 99 | C107: 2013 | D107: 2013-08-26 | E107: 76.5 | G107: 0.1935483871 | H107: 0.03746097815 | I107: 72.05 | J107: 71 | K107: 0 | L107: 0
B108: 100 | C108: 2013 | D108: 2013-08-25 | E108: 72.05 | G108: 0.2258064516 | H108: 0.05098855359 | I108: 71 | J108: 76 | K108: 0 | L108: 0
B109: 101 | C109: 2013 | D109: 2013-08-24 | E109: 71 | G109: 0.2580645161 | H109: 0.06659729448 | I109: 76 | J109: 75 | K109: 0 | L109: 0
B110: 102 | C110: 2013 | D110: 2013-08-23 | E110: 76 | G110: 0.2903225806 | H110: 0.08428720083 | I110: 75 | J110: 79.5 | K110: 0 | L110: 0
B111: 103 | C111: 2013 | D111: 2013-08-22 | E111: 75 | G111: 0.3225806452 | H111: 0.1040582726 | I111: 79.5 | J111: 77 | K111: 0 | L111: 0
B112: 104 | C112: 2013 | D112: 2013-08-21 | E112: 79.5 | G112: 0.3548387097 | H112: 0.1259105099 | I112: 77 | J112: 71.5 | K112: 0 | L112: 0
B113: 105 | C113: 2013 | D113: 2013-08-20 | E113: 77 | G113: 0.3870967742 | H113: 0.1498439126 | I113: 71.5 | J113: 71.5 | K113: 0 | L113: 0
B114: 106 | C114: 2013 | D114: 2013-08-19 | E114: 71.5 | G114: 0.4193548387 | H114: 0.1758584807 | I114: 71.5 | J114: 72.5 | K114: 0 | L114: 0
B115: 107 | C115: 2013 | D115: 2013-08-18 | E115: 71.5 | G115: 0.4516129032 | H115: 0.2039542144 | I115: 72.5 | J115: 69.5 | K115: 0 | L115: 0
B116: 108 | C116: 2013 | D116: 2013-08-17 | E116: 72.5 | G116: 0.4838709677 | H116: 0.2341311134 | I116: 69.5 | J116: 69 | K116: 0 | L116: 0
B117: 109 | C117: 2013 | D117: 2013-08-16 | E117: 69.5 | G117: 0.5161290323 | H117: 0.2663891779 | I117: 69 | J117: 68.5 | K117: 0 | L117: 0
B118: 110 | C118: 2013 | D118: 2013-08-15 | E118: 69 | G118: 0.5483870968 | H118: 0.3007284079 | I118: 68.5 | J118: 74.5 | K118: 0 | L118: 0
B119: 111 | C119: 2013 | D119: 2013-08-14 | E119: 68.5 | G119: =G88 -> 0.5806451613 | H119: 0.3371488033 | I119: 74.5 | J119: 76.5 | K119: 0 | L119: 0
B120: 112 | C120: 2013 | D120: 2013-08-13 | E120: 74.5 | G120: 0.6129032258 | H120: 0.3756503642 | I120: 76.5 | J120: 73.49 | K120: 0 | L120: 0
B121: 113 | C121: 2013 | D121: 2013-08-12 | E121: 76.5 | G121: 0.6451612903 | H121: 0.4162330905 | I121: 73.49 | J121: 76.46 | K121: 0 | L121: 0
B122: 114 | C122: 2013 | D122: 2013-08-11 | E122: 73.49 | G122: 0.6774193548 | H122: 0.4588969823 | I122: 76.46 | J122: 80.95 | K122: 0 | L122: 0
B123: 115 | C123: 2013 | D123: 2013-08-10 | E123: 76.46 | G123: 0.7096774194 | H123: 0.5036420395 | I123: 80.95 | J123: 77 | K123: 0 | L123: 0
B124: 116 | C124: 2013 | D124: 2013-08-09 | E124: 80.95 | G124: 0.7419354839 | H124: 0.5504682622 | I124: 77 | J124: 74.5 | K124: 0 | L124: 0
B125: 117 | C125: 2013 | D125: 2013-08-08 | E125: 77 | G125: 0.7741935484 | H125: 0.5993756504 | I125: 74.5 | J125: 71 | K125: 0 | L125: 0
B126: 118 | C126: 2013 | D126: 2013-08-07 | E126: 74.5 | G126: 0.8064516129 | H126: 0.650364204 | I126: 71 | J126: 71 | K126: 0 | L126: 0
B127: 119 | C127: 2013 | D127: 2013-08-06 | E127: 71 | G127: 0.8387096774 | H127: 0.703433923 | I127: 71 | J127: 73 | K127: 0 | L127: 0
B128: 120 | C128: 2013 | D128: 2013-08-05 | E128: 71 | G128: 0.8709677419 | H128: 0.7585848075 | I128: 73 | J128: 74.6 | K128: 0 | L128: 0
B129: 121 | C129: 2013 | D129: 2013-08-04 | E129: 73 | G129: 0.9032258065 | H129: 0.8158168574 | I129: 74.6 | J129: 77 | K129: 0 | L129: 0
B130: 122 | C130: 2013 | D130: 2013-08-03 | E130: 74.6 | G130: 0.935483871 | H130: 0.8751300728 | I130: 77 | J130: 71.5 | K130: 0 | L130: 0
B131: 123 | C131: 2013 | D131: 2013-08-02 | E131: 77 | G131: 0.9677419355 | H131: 0.9365244537 | I131: 71.5 | J131: 0 | K131: 0 | L131: 1
B132: 124 | C132: 2013 | D132: 2013-08-01 | E132: 71.5 | G132: 1 | H132: 1 | I132: 0 | J132: 0 | K132: 1 | L132: 0
B133: 125 | C133: 2012 | D133: =DATE(C133, 8, 31) -> 2012-08-31 | E133: 78.5 | G133: =G102 -> 0.03225806452 | H133: =H102 -> 0.001040582726 | I133: =E134 -> 73 | J133: =E135 -> 74 | K133: 0 | L133: 0
B134: 126 | C134: 2012 | D134: =D133-1 -> 2012-08-30 | E134: 73 | G134: =G103 -> 0.06451612903 | H134: 0.004162330905 | I134: 74 | J134: 81.5 | K134: 0 | L134: 0
B135: 127 | C135: 2012 | D135: 2012-08-29 | E135: 74 | G135: 0.09677419355 | H135: 0.009365244537 | I135: 81.5 | J135: 76.5 | K135: 0 | L135: 0
B136: 128 | C136: 2012 | D136: 2012-08-28 | E136: 81.5 | G136: 0.1290322581 | H136: 0.01664932362 | I136: 76.5 | J136: 75.5 | K136: 0 | L136: 0
B137: 129 | C137: 2012 | D137: 2012-08-27 | E137: 76.5 | G137: 0.1612903226 | H137: 0.02601456816 | I137: 75.5 | J137: 77.5 | K137: 0 | L137: 0
B138: 130 | C138: 2012 | D138: 2012-08-26 | E138: 75.5 | G138: 0.1935483871 | H138: 0.03746097815 | I138: 77.5 | J138: 78.5 | K138: 0 | L138: 0
B139: =B138+1 -> 131 | C139: 2012 | D139: 2012-08-25 | E139: 77.5 | G139: 0.2258064516 | H139: 0.05098855359 | I139: 78.5 | J139: 76 | K139: 0 | L139: 0
B140: 132 | C140: 2012 | D140: 2012-08-24 | E140: 78.5 | G140: 0.2580645161 | H140: 0.06659729448 | I140: 76 | J140: 76 | K140: 0 | L140: 0
B141: 133 | C141: 2012 | D141: 2012-08-23 | E141: 76 | G141: 0.2903225806 | H141: 0.08428720083 | I141: 76 | J141: 75 | K141: 0 | L141: 0
B142: 134 | C142: 2012 | D142: 2012-08-22 | E142: 76 | G142: 0.3225806452 | H142: 0.1040582726 | I142: 75 | J142: 72 | K142: 0 | L142: 0
B143: 135 | C143: 2012 | D143: 2012-08-21 | E143: 75 | G143: 0.3548387097 | H143: 0.1259105099 | I143: 72 | J143: 67.5 | K143: 0 | L143: 0
B144: 136 | C144: 2012 | D144: 2012-08-20 | E144: 72 | G144: 0.3870967742 | H144: 0.1498439126 | I144: 67.5 | J144: 73.5 | K144: 0 | L144: 0
B145: 137 | C145: 2012 | D145: 2012-08-19 | E145: 67.5 | G145: 0.4193548387 | H145: 0.1758584807 | I145: 73.5 | J145: 79 | K145: 0 | L145: 0
B146: 138 | C146: 2012 | D146: 2012-08-18 | E146: 73.5 | G146: 0.4516129032 | H146: 0.2039542144 | I146: 79 | J146: 78 | K146: 0 | L146: 0
B147: 139 | C147: 2012 | D147: 2012-08-17 | E147: 79 | G147: 0.4838709677 | H147: 0.2341311134 | I147: 78 | J147: 77.5 | K147: 0 | L147: 0
B148: 140 | C148: 2012 | D148: 2012-08-16 | E148: 78 | G148: 0.5161290323 | H148: 0.2663891779 | I148: 77.5 | J148: 74.5 | K148: 0 | L148: 0
B149: 141 | C149: 2012 | D149: 2012-08-15 | E149: 77.5 | G149: 0.5483870968 | H149: 0.3007284079 | I149: 74.5 | J149: 78 | K149: 0 | L149: 0
B150: 142 | C150: 2012 | D150: 2012-08-14 | E150: 74.5 | G150: =G119 -> 0.5806451613 | H150: 0.3371488033 | I150: 78 | J150: 80.5 | K150: 0 | L150: 0
B151: 143 | C151: 2012 | D151: 2012-08-13 | E151: 78 | G151: 0.6129032258 | H151: 0.3756503642 | I151: 80.5 | J151: 82 | K151: 0 | L151: 0
B152: 144 | C152: 2012 | D152: 2012-08-12 | E152: 80.5 | G152: 0.6451612903 | H152: 0.4162330905 | I152: 82 | J152: 77 | K152: 0 | L152: 0
B153: 145 | C153: 2012 | D153: 2012-08-11 | E153: 82 | G153: 0.6774193548 | H153: 0.4588969823 | I153: 77 | J153: 81.5 | K153: 0 | L153: 0
B154: 146 | C154: 2012 | D154: 2012-08-10 | E154: 77 | G154: 0.7096774194 | H154: 0.5036420395 | I154: 81.5 | J154: 80 | K154: 0 | L154: 0
B155: 147 | C155: 2012 | D155: 2012-08-09 | E155: 81.5 | G155: 0.7419354839 | H155: 0.5504682622 | I155: 80 | J155: 74.5 | K155: 0 | L155: 0
B156: 148 | C156: 2012 | D156: 2012-08-08 | E156: 80 | G156: 0.7741935484 | H156: 0.5993756504 | I156: 74.5 | J156: 81.5 | K156: 0 | L156: 0
B157: 149 | C157: 2012 | D157: 2012-08-07 | E157: 74.5 | G157: 0.8064516129 | H157: 0.650364204 | I157: 81.5 | J157: 84.5 | K157: 0 | L157: 0
B158: 150 | C158: 2012 | D158: 2012-08-06 | E158: 81.5 | G158: 0.8387096774 | H158: 0.703433923 | I158: 84.5 | J158: 83 | K158: 0 | L158: 0
B159: 151 | C159: 2012 | D159: 2012-08-05 | E159: 84.5 | G159: 0.8709677419 | H159: 0.7585848075 | I159: 83 | J159: 83.5 | K159: 0 | L159: 0
B160: 152 | C160: 2012 | D160: 2012-08-04 | E160: 83 | G160: 0.9032258065 | H160: 0.8158168574 | I160: 83.5 | J160: 80.5 | K160: 0 | L160: 0
B161: 153 | C161: 2012 | D161: 2012-08-03 | E161: 83.5 | G161: 0.935483871 | H161: 0.8751300728 | I161: 80.5 | J161: 75.5 | K161: 0 | L161: 0
B162: 154 | C162: 2012 | D162: 2012-08-02 | E162: 80.5 | G162: 0.9677419355 | H162: 0.9365244537 | I162: 75.5 | J162: 0 | K162: 0 | L162: 1
B163: 155 | C163: 2012 | D163: 2012-08-01 | E163: 75.5 | G163: 1 | H163: 1 | I163: 0 | J163: 0 | K163: 1 | L163: 0
B164: 156 | C164: 2011 | D164: =DATE(C164, 8, 31) -> 2011-08-31 | E164: 74.5 | G164: =G133 -> 0.03225806452 | H164: =H133 -> 0.001040582726 | I164: =E165 -> 72.5 | J164: =E166 -> 68 | K164: 0 | L164: 0
B165: 157 | C165: =C164 -> 2011 | D165: =D164-1 -> 2011-08-30 | E165: 72.5 | G165: =G134 -> 0.06451612903 | H165: 0.004162330905 | I165: 68 | J165: 71 | K165: 0 | L165: 0
B166: 158 | C166: 2011 | D166: 2011-08-29 | E166: 68 | G166: 0.09677419355 | H166: 0.009365244537 | I166: 71 | J166: 77 | K166: 0 | L166: 0
B167: 159 | C167: 2011 | D167: 2011-08-28 | E167: 71 | G167: 0.1290322581 | H167: 0.01664932362 | I167: 77 | J167: 78.5 | K167: 0 | L167: 0
B168: 160 | C168: 2011 | D168: 2011-08-27 | E168: 77 | G168: 0.1612903226 | H168: 0.02601456816 | I168: 78.5 | J168: 76.5 | K168: 0 | L168: 0
B169: 161 | C169: 2011 | D169: 2011-08-26 | E169: 78.5 | G169: 0.1935483871 | H169: 0.03746097815 | I169: 76.5 | J169: 72.5 | K169: 0 | L169: 0
B170: 162 | C170: 2011 | D170: 2011-08-25 | E170: 76.5 | G170: 0.2258064516 | H170: 0.05098855359 | I170: 72.5 | J170: 72 | K170: 0 | L170: 0
B171: 163 | C171: 2011 | D171: 2011-08-24 | E171: 72.5 | G171: 0.2580645161 | H171: 0.06659729448 | I171: 72 | J171: 74.5 | K171: 0 | L171: 0
B172: 164 | C172: 2011 | D172: 2011-08-23 | E172: 72 | G172: 0.2903225806 | H172: 0.08428720083 | I172: 74.5 | J172: 79.5 | K172: 0 | L172: 0
B173: 165 | C173: 2011 | D173: 2011-08-22 | E173: 74.5 | G173: 0.3225806452 | H173: 0.1040582726 | I173: 79.5 | J173: 77 | K173: 0 | L173: 0
B174: 166 | C174: 2011 | D174: 2011-08-21 | E174: 79.5 | G174: 0.3548387097 | H174: 0.1259105099 | I174: 77 | J174: 76.5 | K174: 0 | L174: 0
B175: 167 | C175: 2011 | D175: 2011-08-20 | E175: 77 | G175: 0.3870967742 | H175: 0.1498439126 | I175: 76.5 | J175: 78 | K175: 0 | L175: 0
B176: 168 | C176: 2011 | D176: 2011-08-19 | E176: 76.5 | G176: 0.4193548387 | H176: 0.1758584807 | I176: 78 | J176: 77.5 | K176: 0 | L176: 0
B177: 169 | C177: 2011 | D177: 2011-08-18 | E177: 78 | G177: 0.4516129032 | H177: 0.2039542144 | I177: 77.5 | J177: 73.5 | K177: 0 | L177: 0
B178: 170 | C178: 2011 | D178: 2011-08-17 | E178: 77.5 | G178: 0.4838709677 | H178: 0.2341311134 | I178: 73.5 | J178: 75.5 | K178: 0 | L178: 0
B179: 171 | C179: 2011 | D179: 2011-08-16 | E179: 73.5 | G179: 0.5161290323 | H179: 0.2663891779 | I179: 75.5 | J179: 71.5 | K179: 0 | L179: 0
B180: 172 | C180: 2011 | D180: 2011-08-15 | E180: 75.5 | G180: 0.5483870968 | H180: 0.3007284079 | I180: 71.5 | J180: 78 | K180: 0 | L180: 0
B181: 173 | C181: 2011 | D181: 2011-08-14 | E181: 71.5 | G181: =G150 -> 0.5806451613 | H181: 0.3371488033 | I181: 78 | J181: 75 | K181: 0 | L181: 0
B182: 174 | C182: 2011 | D182: 2011-08-13 | E182: 78 | G182: 0.6129032258 | H182: 0.3756503642 | I182: 75 | J182: 77.5 | K182: 0 | L182: 0
B183: 175 | C183: 2011 | D183: 2011-08-12 | E183: 75 | G183: 0.6451612903 | H183: 0.4162330905 | I183: 77.5 | J183: 80 | K183: 0 | L183: 0
B184: 176 | C184: 2011 | D184: 2011-08-11 | E184: 77.5 | G184: 0.6774193548 | H184: 0.4588969823 | I184: 80 | J184: 78 | K184: 0 | L184: 0
B185: 177 | C185: 2011 | D185: 2011-08-10 | E185: 80 | G185: 0.7096774194 | H185: 0.5036420395 | I185: 78 | J185: 85 | K185: 0 | L185: 0
B186: 178 | C186: 2011 | D186: 2011-08-09 | E186: 78 | G186: 0.7419354839 | H186: 0.5504682622 | I186: 85 | J186: 85 | K186: 0 | L186: 0
B187: 179 | C187: 2011 | D187: 2011-08-08 | E187: 85 | G187: 0.7741935484 | H187: 0.5993756504 | I187: 85 | J187: 78.5 | K187: 0 | L187: 0
B188: 180 | C188: 2011 | D188: 2011-08-07 | E188: 85 | G188: 0.8064516129 | H188: 0.650364204 | I188: 78.5 | J188: 77.5 | K188: 0 | L188: 0
B189: 181 | C189: 2011 | D189: 2011-08-06 | E189: 78.5 | G189: 0.8387096774 | H189: 0.703433923 | I189: 77.5 | J189: 76.5 | K189: 0 | L189: 0
B190: 182 | C190: 2011 | D190: 2011-08-05 | E190: 77.5 | G190: 0.8709677419 | H190: 0.7585848075 | I190: 76.5 | J190: 78 | K190: 0 | L190: 0
B191: 183 | C191: 2011 | D191: 2011-08-04 | E191: 76.5 | G191: 0.9032258065 | H191: 0.8158168574 | I191: 78 | J191: 83 | K191: 0 | L191: 0
B192: 184 | C192: 2011 | D192: 2011-08-03 | E192: 78 | G192: 0.935483871 | H192: 0.8751300728 | I192: 83 | J192: 85.5 | K192: 0 | L192: 0
B193: 185 | C193: 2011 | D193: 2011-08-02 | E193: 83 | G193: 0.9677419355 | H193: 0.9365244537 | I193: 85.5 | J193: 0 | K193: 0 | L193: 1
B194: 186 | C194: 2011 | D194: 2011-08-01 | E194: 85.5 | G194: 1 | H194: 1 | I194: 0 | J194: 0 | K194: 1 | L194: 0
B195: 187 | C195: =C164-1 -> 2010 | D195: =DATE(C195, 8, 31) -> 2010-08-31 | E195: 85.5 | G195: =G164 -> 0.03225806452 | H195: =H164 -> 0.001040582726 | I195: =E196 -> 83.5 | J195: =E197 -> 79 | K195: 0 | L195: 0
B196: 188 | C196: 2010 | D196: =D195-1 -> 2010-08-30 | E196: 83.5 | G196: =G165 -> 0.06451612903 | H196: 0.004162330905 | I196: 79 | J196: 72 | K196: 0 | L196: 0
B197: 189 | C197: 2010 | D197: 2010-08-29 | E197: 79 | G197: 0.09677419355 | H197: 0.009365244537 | I197: 72 | J197: 70.5 | K197: 0 | L197: 0
B198: 190 | C198: 2010 | D198: 2010-08-28 | E198: 72 | G198: 0.1290322581 | H198: 0.01664932362 | I198: 70.5 | J198: 75.5 | K198: 0 | L198: 0
B199: 191 | C199: 2010 | D199: 2010-08-27 | E199: 70.5 | G199: 0.1612903226 | H199: 0.02601456816 | I199: 75.5 | J199: 68 | K199: 0 | L199: 0
B200: 192 | C200: 2010 | D200: 2010-08-26 | E200: 75.5 | G200: 0.1935483871 | H200: 0.03746097815 | I200: 68 | J200: 68 | K200: 0 | L200: 0
B201: 193 | C201: 2010 | D201: 2010-08-25 | E201: 68 | G201: 0.2258064516 | H201: 0.05098855359 | I201: 68 | J201: 68.5 | K201: 0 | L201: 0
B202: 194 | C202: 2010 | D202: 2010-08-24 | E202: 68 | G202: 0.2580645161 | H202: 0.06659729448 | I202: 68.5 | J202: 76 | K202: 0 | L202: 0
B203: =B202+1 -> 195 | C203: 2010 | D203: 2010-08-23 | E203: 68.5 | G203: 0.2903225806 | H203: 0.08428720083 | I203: 76 | J203: 73.5 | K203: 0 | L203: 0
... 332 more rows

Sheet code
B2: TAB: R CODE
B4: R code for standard OLS regression
B5: mydata <- read.table("C:/Projects/java/data/jcalc/jmath/stats/R/data/EWR-Aug.csv", header=TRUE, sep=",") reg <- lm(formula=EWR.Aug~Linear+Quadratic+EWR.lag1+EWR.lag2+Aug.1st+Aug.2nd, data=mydata) out <- summary(reg)

Sheet config
B2: TAB: CONFIGURATION FILE | D2: Calculation enabled | F2: TRUE
B5: Test connection | C5: =_xll.AC.test.connection() -> host: home-pc; user: Konstantin Rybakov; key: null
